Workbook

Sheet المقسطون
J2: تاريخ اليوم : | K2: =TODAY() -> 2021-03-20
C3: ملف العميــل | D3: 2400 | E3: الاســم : | F3: =VLOOKUP(D3,B26:K61,2,0) -> 100
B4: نظـام الخصــم :
E5: إسم البضاعة :
C6: السعر النقدي | D6: =VLOOKUP(D3,B26:K61,4,0) -> 50000
C7: قيمة العقد بالتقسيط | D7: =VLOOKUP(D3,B26:K61,5,0) -> 70000 | E7: موديلها :
C8: المقدم | D8: 0 | I8: حساب نســبة التقسـيط :
C9: القسط الشهري | D9: =VLOOKUP(D3,B26:K61,6,0) -> 2000 | N9: 2017-12-01
C10: ماتم سداده من المبلغ | D10: =IF($D$11>$K$2,0,IF($D$12<$K$2,$D$7,(SUM(DATEDIF($D$11,$K$2,"Y")*12)+(DATEDIF($D$11,$K$2,"ym"))+(IF(DATEDIF($D$11,$K$2,"md")<>0,1,0)))*D9)) -> 34000 | F10: المدة | G10: =(D7-D8)/D9 -> 35 | I10: السعر | J10: الاشهر | N10: =TEXT(N9,"[$-,197000]B2yyyy/mm/dd;@") -> 2017/12/01
C11: بداية التسديد | D11: =VLOOKUP(D3,B26:K61,7,0) -> 2019-11-01 | F11: الربح كامل | G11: =D7-D6 -> 20000 | I11: 50000 | J11: =VLOOKUP(D3,B26:K61,3,1) -> 35 | N11: =TEXT(N9,"[$-,197]B2yyyy/mm/dd;@") -> 1439/03/13
C12: نهاية التسديد | D12: =VLOOKUP(D3,B26:K61,8,0) -> 2022-08-01 | F12: الربح الشهري | G12: =G11/G10 -> 571.4285714 | I12: الزيادة | J12: =SUM(I11*(J11%+5%)) -> 20000
C13: الأشهر المسددة | D13: =(D10/D9) -> 17 | F13: النسبة | G13: =(G11/(D6-D8))*100 -> 40 | I13: بعد الزيادة | J13: =SUM(I11+J12) -> 70000
C14: الأشهر المتبقية | D14: =D16/D9 -> 18 | F14: النسبة السنوية | G14: =(G13/G10)*12 -> 13.71428571 | I14: القسط الشهري | J14: =SUM(J13/J11) -> 2000 | M14: 1441/03/4 | N14: =ConvertDate(M14) -> 2019/11/01
F15: النسبة الشهرية | G15: =G13/G10 -> 1.142857143 | M15: 1444/03/06 | N15: =ConvertDate(M15) -> 2022/10/01
C16: الباقي من المبلغ | D16: =D7-D10 -> 36000 | I16: التاريخ الميلادي والتاريخ الهجري :
C17: الخصم | D17: =((D16*G14%)*(D14/12))/(1+((G14%)*(D14/12))) -> 6142.180095 | I17: ملف العميــل | J17: الاســم | L17: مدة العقـد | M17: من | N17: الى
C18: المطلوب | D18: =D16-D17 -> 29857.81991 | I18: =D3 -> 2400 | J18: =F3 -> 100 | L18: =G10 -> 35 | M18: 2019-11-01 | N18: =EDATE(M18,L18) -> 2022-10-01
C23: ملاحظة : اذا تم السداد قبل الموعد المحدد يتم إضافة 1000 ( الف ريال ) | M23: =D11 -> 2019-11-01 | N23: =EDATE(M23,L18) -> 2022-10-01
B25: رقم الملف | C25: الاسم | D25: مدة القرض ( بالشهر ) | E25: السعر النقدي | F25: القيمة بعد التقسيط | G25: القسط | H25: من | I25: الى | J25: الربــح | K25: الدخل الشهري | L25: حـالة العقـد | M25: سداد مبكر بتاريخ | N25: المبلغ المسدد | O25: حـالة العقـد
B26: 100 | C26: 100 | D26: 40 | E26: 32000 | F26: 46400 | G26: 1160 | H26: 2008-10-25 | I26: =MID(TEXT(H26,"b2dd.mm.yyyy"),1,2)-MID(TEXT(H26+ROUND((D26-1)*354.367056/12,0),"b2dd.mm.yyyy"),1,2)+H26+ROUND((D26-1)*354.367056/12,0) -> 2011-12-20 | J26: =SUM(E26*(D26%+5%)) -> 14400 | K26: 0 | L26: =IFERROR(IF(TODAY()=I26,"العقد انتهى اليوم",IF(TODAY()>I26,"العقـد منتهى",IF(TODAY()<H26,"لم يتم تداولة","العقـد سارى"))),"") -> العقـد منتهى | O26: =IF(M26,"سداد مبكر",M26) -> 0
B48: 2300 | C48: 100 | D48: 35 | E48: 50000 | F48: =E48+J48 -> 70000 | G48: =F48/D48 -> 2000 | H48: 2018-04-10 | I48: 2021-01-08 | J48: 20000 | K48: 0 | L48: =IFERROR(IF(TODAY()=I48,"العقد انتهى اليوم",IF(TODAY()>I48,"العقـد منتهى",IF(TODAY()<H48,"لم يتم تداولة","العقـد سارى"))),"") -> العقـد منتهى | M48: 2019-02-07 | N48: 39889 | O48: =IF(M48,"سداد مبكر",M48) -> سداد مبكر
B49: 2400 | C49: 100 | D49: 35 | E49: 50000 | F49: =E49+J49 -> 70000 | G49: =F49/D49 -> 2000 | H49: 2019-11-01 | I49: 2022-08-01 | J49: 20000 | K49: =G49 -> 2000 | L49: =IFERROR(IF(TODAY()=I49,"العقد انتهى اليوم",IF(TODAY()>I49,"العقـد منتهى",IF(TODAY()<H49,"لم يتم تداولة","العقـد سارى"))),"") -> العقـد سارى | O49: 0
B50: 2500 | C50: 100 | D50: 35 | E50: 50000 | F50: =E50+J50 -> 70000 | G50: 2000 | H50: 2020-09-25 | I50: 2023-06-26 | J50: 20000 | K50: =G50 -> 2000 | L50: العقـد سارى | O50: 0
B51: 2600 | C51: 100 | D51: 35 | E51: 50000 | F51: =E51+J51 -> 70000 | G51: =F51/D51 -> 2000 | H51: 2019-11-01 | I51: =MID(TEXT(H51,"b2dd.mm.yyyy"),1,2)-MID(TEXT(H51+ROUND((D51-1)*354.367056/12,0),"b2dd.mm.yyyy"),1,2)+H51+ROUND((D51-1)*354.367056/12,0) -> 2022-08-01 | J51: =SUM(E51*(D51%+5%)) -> 20000 | K51: =G51 -> 2000 | L51: =IFERROR(IF(TODAY()=I51,"العقد انتهى اليوم",IF(TODAY()>I51,"العقـد منتهى",IF(TODAY()<H51,"لم يتم تداولة","العقـد سارى"))),"") -> العقـد سارى | O51: 0
G52: =F52/40 -> 0 | O52: 0
G53: 0 | O53: 0
G54: 0 | O54: 0
G55: 0 | O55: 0
G56: 0 | O56: 0
G57: 0 | O57: 0
G58: 0 | O58: 0
G59: 0 | O59: 0
G60: 0 | O60: 0
G61: 0 | O61: 0
E62: =SUM(E26:E61) -> 232000 | F62: =SUM(F26:F61) -> 326400 | J62: =SUM(J26:J61) -> 94400 | K62: =SUM(K26:K61) -> 6000
